bitfinex-derivatives/quotes_SOLF0:USTF0_20251202
["timestamp","ask_amount","ask_price","bid_price","bid_amount"]
[1764693626926,3.01864277,139.44,139.42,0.05334607]
[1764693627123,3.01864277,139.44,139.36,3.17]
[1764693627124,2.97,139.42,139.36,3.17]
[1764693627323,2.97,139.41,139.38,1.74416693]
[1764693628122,3.01617691,139.41,139.38,1.79046367]
[1764693628320,3.01617691,139.41,139.38,0.04629674]
[1764693628622,0.04617691,139.41,139.39,1.74243526]
[1764693629123,0.04617691,139.41,139.4,1.74243526]
[1764693629519,0.04617691,139.41,139.39,1.74243526]
[1764693630320,0.04617691,139.41,139.39,1.74249685]
[1764693631229,0.04617691,139.41,139.39,4.91249685]
[1764693631431,0.04617691,139.41,139.4,4.91249685]
[1764693631632,0.04617691,139.41,139.4,3.17]
[1764693635931,6.50177691,139.41,139.38,3.13629674]
[1764693636133,6.50177691,139.41,139.4,1.74387699]
[1764693636831,0.04617691,139.41,139.4,4.83387699]
[1764693637031,0.04617691,139.41,139.4,3.09]
[1764693643133,62.98,139.47,139.4,3.09]
[1764693643333,62.98,139.47,139.45,3.19]
[1764693644233,63.0349719,139.47,139.46,1.74075424]
[1764693644438,3.1,139.46,139.41,3.19]
[1764693644740,3.1,139.46,139.42,1.74101803]
[1764693645441,0.05471933,139.45,139.43,0.04903572]
[1764693646135,3.15471933,139.45,139.43,0.04903572]
[1764693646440,0.05471933,139.45,139.43,0.04903572]
[1764693646641,3.15471933,139.45,139.43,0.04903572]
[1764693648232,0.05471933,139.45,139.43,0.04903572]
[1764693648634,0.05471933,139.45,139.43,3.23903572]
[1764693648834,0.05471933,139.45,139.44,1.74082699]
[1764693649537,0.05471933,139.45,139.44,4.93082699]
[1764693649737,0.05471933,139.45,139.44,3.19]
[1764693652443,3.15471933,139.45,139.43,0.04903572]
[1764693653647,9.60851933,139.45,139.43,0.04903572]
[1764693653837,3.15471933,139.45,139.43,0.04903572]
[1764693655138,3.1,139.44,139.4,20.89]
[1764693655347,3.1,139.44,139.41,1.74408962]
[1764693656247,3.1,139.44,139.41,1.79512346]
[1764693656448,3.1,139.44,139.41,0.05103384]
[1764693656646,3.1,139.44,139.41,1.79522989]
[1764693656838,3.1,139.44,139.41,0.05103384]
[1764693657039,3.1,139.44,139.41,1.79540123]
[1764693657339,3.1,139.44,139.41,0.05103384]
[1764693657646,3.1,139.44,139.41,1.79554911]
[1764693657847,3.1,139.44,139.41,0.05103384]
[1764693658046,3.1,139.44,139.41,1.79554837]
[1764693658246,3.1,139.44,139.41,0.05103384]
[1764693658440,3.1,139.44,139.41,1.7955484]
[1764693658642,3.1,139.44,139.41,0.05103384]
[1764693658842,3.1,139.44,139.41,1.79553595]
[1764693659045,3.1,139.44,139.41,0.05103384]
[1764693659254,3.1,139.44,139.41,1.79553595]
[1764693659450,0.05471933,139.45,139.41,4.98553595]
[1764693659650,0.05471933,139.45,139.42,3.19]
[1764693660135,3.15471933,139.45,139.42,3.19]
[1764693660335,0.05471933,139.45,139.43,4.93336039]
[1764693660538,0.05471933,139.45,139.43,3.19]
[1764693660740,0.05471933,139.45,139.41,0.05103384]
[1764693660948,3.15471933,139.45,139.42,1.74365353]
[1764693661151,3.15471933,139.45,139.41,3.24103384]
[1764693661346,3.15471933,139.45,139.43,3.19]
[1764693661347,0.05471933,139.45,139.43,3.19]
[1764693663955,3.1,139.52,139.45,3.19]
[1764693664256,3.1,139.52,139.4,20.89]
[1764693664257,3.1,139.49,139.42,3.19]
[1764693664456,3.1,139.49,139.45,1.74236541]
[1764693664755,9.5519,139.49,139.45,4.93236541]
[1764693664958,0.04575549,139.48,139.46,0.05299503]
[1764693665139,3.14575549,139.48,139.46,0.05299503]
[1764693665755,9.59805549,139.48,139.46,0.05299503]
[1764693665945,3.1,139.46,139.4,20.89]
[1764693666140,3.1,139.46,139.41,1.74362671]
[1764693666348,3.1,139.46,139.41,4.93362671]
[1764693666546,3.1,139.46,139.42,4.93371521]
[1764693666760,3.1,139.46,139.4,20.89]
[1764693666954,0.04802374,139.44,139.42,0.04847705]
[1764693667850,0.04802374,139.44,139.42,3.23847705]
[1764693668361,0.04802374,139.44,139.42,0.04847705]
[1764693669157,3.24802374,139.44,139.42,0.04847705]
[1764693672343,8.3473596,139.43,139.42,0.04847705]
[1764693673060,3.2,139.42,139.37,18.84]
[1764693673256,66.08,139.41,139.39,1.74866838]
[1764693674152,3.2,139.4,139.39,0.04889248]
[1764693675758,3.2,139.39,139.37,18.84]
[1764693676063,3.2,139.39,139.35,19.72]
[1764693676263,3.2,139.39,139.36,1.74989254]
[1764693676453,3.2,139.37,139.36,1.74989254]
[1764693676759,3.2,139.37,139.35,19.77329739]
[1764693676951,100.4643,139.35,139.28,3.12]
[1764693677259,100.4707,139.34,139.29,1.75150481]
[1764693677459,100.4707,139.34,139.25,3.12]
[1764693677759,182.80026629,139.33,139.21,3.12]
[1764693677966,0.05438531,139.28,139.26,0.05485773]
[1764693678154,62.86,139.27,139.26,0.05485773]
[1764693678659,62.86,139.27,139.18,13.07951476]
[1764693678965,62.86,139.27,139.23,1.74739478]
[1764693679264,62.86,139.27,139.22,1.74739478]
[1764693679265,6.4628,139.26,139.22,1.74739478]
[1764693679762,6.50887859,139.25,139.23,0.05345247]
[1764693680351,0.04567859,139.25,139.23,0.05345247]
[1764693681962,6.50887859,139.25,139.23,0.05345247]
[1764693683166,0.04567859,139.25,139.23,0.05345247]
[1764693683368,0.04567859,139.25,139.23,3.17345247]
[1764693683563,62.88,139.24,139.23,0.05345247]
[1764693684669,62.9,139.24,139.23,0.05345247]
[1764693687372,62.9,139.24,139.23,3.17345247]
[1764693688272,62.9,139.24,139.23,0.05345247]
[1764693690676,100.5514,139.23,139.19,35.55]
[1764693690980,62.9,139.24,139.19,35.55]
[1764693691673,62.9,139.24,139.2,0.04755614]
[1764693691872,62.9,139.24,139.19,35.55]
[1764693691873,6.464,139.23,139.19,32.29]
[1764693692065,163.4429,139.24,139.11,3.12]
[1764693692265,163.4429,139.24,139.14,1.73065844]
[1764693692485,6.465,139.21,139.14,1.73065844]
[1764693692771,62.9,139.2,139.14,3.12]
[1764693693085,21.51,139.28,139.07,35.46188883]
[1764693693086,0.05141315,139.18,139.16,3.16622929]
[1764693693274,62.9,139.18,139.17,4.80065844]
[1764693693572,62.9,139.18,139.17,3.07]
[1764693695175,62.9,139.18,139.16,0.05461654]
[1764693695477,62.9,139.18,139.17,1.72740468]
[1764693696884,62.9,139.18,139.16,0.05461654]
[1764693697082,0.04784674,139.19,139.16,0.05461654]
[1764693697379,62.94784674,139.19,139.16,3.12461654]
[1764693697878,62.94784674,139.19,139.17,1.72681693]
[1764693698280,62.94784674,139.19,139.18,3.07]
[1764693698468,62.94784674,139.19,139.16,0.05461654]
[1764693698670,62.94784674,139.19,139.17,1.72701915]
[1764693698866,62.94784674,139.19,139.16,0.05461654]
[1764693699572,6.4662,139.18,139.16,0.05461654]
[1764693700868,0.04784674,139.19,139.16,0.05461654]
[1764693701073,62.9,139.18,139.16,0.05461654]
[1764693703580,6.4667,139.17,139.16,0.05461654]
[1764693704085,62.9,139.18,139.16,0.05461654]
[1764693704483,0.04784674,139.19,139.16,0.05461654]
[1764693704680,62.9,139.17,139.16,0.05461654]
[1764693711491,100.6031,139.16,139.07,8.62]
[1764693711700,8.6122295,139.14,139.09,1.73144717]
[1764693711884,8.6122295,139.14,139.08,1.73144717]
[1764693712195,62.9,139.13,139.08,4.78351391]
[1764693712383,62.9,139.13,139.09,4.78351391]
[1764693712687,0.04867923,139.12,139.1,4.8341437]
[1764693712883,0.04867923,139.12,139.1,3.10062979]
[1764693714083,0.04867923,139.12,139.1,0.05062979]
[1764693717183,6.51797923,139.12,139.1,0.05062979]
[1764693717593,0.04867923,139.12,139.1,0.05062979]
[1764693719698,6.51787923,139.12,139.1,0.05062979]
[1764693721105,0.04867923,139.12,139.1,3.10062979]
[1764693721404,0.04867923,139.12,139.11,4.79544649]
[1764693721602,0.04867923,139.12,139.11,3.05]
[1764693723010,62.9,139.16,139.12,3.05]
[1764693723205,62.9,139.16,139.14,3.05]
[1764693723402,69.3673,139.16,139.14,3.05]
[1764693724007,69.41748273,139.16,139.14,3.09604491]
[1764693724905,62.9,139.2,139.16,3.05]
[1764693725110,62.9,139.2,139.18,3.05]
[1764693725293,100.5539,139.23,139.18,3.05]
[1764693725616,163.4609,139.22,139.15,3.05]
[1764693725910,0.04843023,139.2,139.19,3.05]
[1764693726110,0.05208391,139.21,139.19,3.05]
[1764693727205,0.05208391,139.21,139.18,0.05031163]
[1764693727407,0.05208391,139.21,139.18,3.10031163]
[1764693727812,6.51698391,139.21,139.18,3.10031163]
[1764693728312,6.4654,139.2,139.18,3.10031163]
[1764693728508,100.5902,139.18,139.12,3.05]
[1764693728711,62.88,139.17,139.14,1.74835907]
[1764693729009,100.6007,139.16,139.08,3.15]
[1764693729712,0.04632167,139.13,139.11,0.05267422]
[1764693729912,62.88,139.12,139.11,0.05267422]
[1764693731317,62.88,139.12,139.11,3.20267422]
[1764693733117,62.88,139.12,139.11,0.05267422]
[1764693733810,62.86,139.12,139.11,3.20267422]
[1764693734400,6.66805388,139.21,139.11,3.20267422]
[1764693734401,201.1082,139.23,139.12,3.15]
[1764693734600,109.1584295,139.24,139.17,1.75208222]
[1764693734903,100.565,139.21,139.12,3.15]
[1764693735110,100.565,139.21,139.15,1.75249411]
[1764693735311,0.05263769,139.19,139.17,0.04805175]
[1764693735613,62.86,139.18,139.17,0.04805175]
[1764693736111,62.86,139.18,139.12,3.15]
[1764693736308,62.86,139.18,139.13,4.90413413]
[1764693736509,100.6031,139.16,139.09,3.15]
[1764693736712,100.6084,139.15,139.1,1.75543618]
[1764693736910,62.86,139.14,139.1,1.75543618]
[1764693737113,0.04726452,139.13,139.11,0.05235311]
[1764693739515,62.90726452,139.13,139.11,0.05235311]
[1764693739711,164.97466452,139.13,139.06,8.64]
[1764693739920,8.6122295,139.1,139.06,8.64]
[1764693740209,62.86,139.09,139.06,8.64]
[1764693740814,62.91287431,139.09,139.06,8.68750591]
[1764693741710,0.05287431,139.09,139.07,4.90927783]
[1764693742017,0.05287431,139.09,139.08,4.90883436]
[1764693742218,0.05287431,139.09,139.08,3.15]
[1764693745410,0.00287431,139.09,139.08,3.15]
[1764693745720,62.86,139.12,139.08,3.15]
[1764693746018,62.86,139.12,139.1,1.7583814]
[1764693746421,62.86,139.12,139.1,4.9083814]
[1764693746611,62.91361346,139.12,139.1,4.9588371]
[1764693746915,62.91361346,139.12,139.1,0.0504557]
[1764693747415,62.91361346,139.12,139.06,8.64]
[1764693747416,100.6376,139.11,139.06,8.64]
[1764693747613,100.6513,139.09,139.06,8.64]
[1764693747811,100.6513,139.09,139.01,3.15]
[1764693748011,100.6513,139.09,139.04,1.76059559]
[1764693748012,6.4723,139.05,139.04,1.76059559]
[1764693748218,69.3323,139.05,139.01,3.15]
[1764693748418,69.3323,139.05,139.03,1.76008336]
[1764693748721,69.38341419,139.05,139.03,1.80751268]
[1764693748917,62.91111419,139.05,139.03,0.04742932]
[1764693749117,62.91111419,139.05,139.03,1.80755516]
[1764693749325,62.91111419,139.05,139.03,0.04742932]
[1764693749515,62.91111419,139.05,139.03,1.80674271]
[1764693749712,62.91111419,139.05,139.03,0.04742932]
[1764693750013,62.91111419,139.05,139.03,1.80674271]
[1764693750214,62.91111419,139.05,139.03,0.04742932]
[1764693750421,62.91111419,139.05,139.03,1.80595699]
[1764693750813,62.91111419,139.05,139.03,0.04742932]
[1764693751006,62.91111419,139.05,139.03,1.80586956]
[1764693751212,62.91111419,139.05,139.03,0.04742932]
[1764693751525,62.91111419,139.05,139.03,1.80507617]
[1764693751719,62.91111419,139.05,139.03,0.04742932]
[1764693752027,70.09720294,139.05,138.96,3.15]
[1764693752320,70.04608875,139.05,138.99,1.75875153]
[1764693752822,62.86,139.05,138.99,1.75875153]
[1764693753016,0.05100582,139.03,139.0,4.90875153]
[1764693753211,0.05428436,139.03,139.0,3.15]
[1764693753413,0.05428436,139.03,139.01,4.82597266]
[1764693753613,0.05271888,139.03,139.02,3.07]
[1764693753813,62.91240613,139.04,138.97,3.07]
[1764693754013,0.05334902,139.02,139.01,4.82561062]
[1764693754211,0.05334902,139.02,139.01,3.07]
[1764693757019,0.05334902,139.02,138.98,3.07]
[1764693757822,0.00334902,139.02,139.01,4.82140803]
[1764693758124,62.86,139.13,139.02,3.07]
[1764693758311,62.86,139.13,139.08,4.81883915]
[1764693758516,62.86,139.13,138.98,100.7277]
[1764693758517,62.86,139.13,139.05,3.07]
[1764693758718,62.86,139.13,139.07,1.74940699]
[1764693758919,0.05449852,139.11,139.09,0.0457335]
[1764693759715,62.91449852,139.11,139.09,0.0457335]
[1764693760030,0.05449852,139.11,139.09,3.0757335]
[1764693760325,0.05449852,139.11,139.1,4.77831221]
[1764693760628,0.05449852,139.11,139.1,3.03]
[1764693760828,62.86,139.15,139.1,3.03]
[1764693761023,62.86,139.15,139.13,3.03]
[1764693761822,62.9129871,139.15,139.13,3.07673808]
[1764693763021,62.9129871,139.15,139.13,0.04673808]
[1764693763825,62.9129871,139.15,139.13,3.07673808]
[1764693764342,0.0529871,139.15,139.13,3.07673808]
[1764693765018,0.0529871,139.15,139.13,0.04673808]
[1764693771130,12.04821078,139.15,139.13,0.04673808]
[1764693771835,12.04821078,139.15,139.06,3.03]
[1764693772021,11.99522368,139.17,139.09,4.77857286]
[1764693772220,62.82,139.16,139.01,100.702]
[1764693772420,62.82,139.16,139.09,1.74892885]
[1764693772421,69.2873,139.16,139.09,1.74892885]
[1764693772826,69.2873,139.16,139.08,1.74892885]
[1764693773033,0.05052336,139.12,139.1,0.04817403]
[1764693773422,1.49052336,139.12,139.02,3.03]
[1764693773626,6.4706,139.09,139.04,1.75205816]
[1764693773829,6.4706,139.09,138.99,3.03]
[1764693773830,74.81522368,139.08,138.99,3.03]
[1764693774027,74.81522368,139.08,139.02,1.7528856]
[1764693774231,74.81522368,139.08,139.01,1.7528856]
[1764693774535,0.05366373,139.06,139.03,0.0297611]
[1764693778423,62.82,139.05,139.03,0.0297611]
[1764693780032,69.2924,139.05,138.98,3.03]
[1764693780332,62.82,139.05,138.92,3.03]
[1764693780532,100.7116,139.01,138.95,1.75048541]
[1764693780734,11.99522368,138.99,138.89,3.03]
[1764693780934,0.0506174,138.95,138.89,3.03]
[1764693781135,62.82,138.94,138.89,3.03]
[1764693781327,62.82,138.94,138.83,3.03]
[1764693781531,0.04861869,138.9,138.83,3.03]
[1764693781730,62.82,138.89,138.83,3.03]
[1764693782339,62.82,138.89,138.79,13.08487954]
[1764693782340,62.82,138.89,138.86,1.75143594]
[1764693782535,62.82,138.89,138.79,3.03]
[1764693782735,163.66259404,138.89,138.79,3.03]
[1764693783035,0.04546382,138.85,138.79,3.03]
[1764693783241,62.82,138.84,138.79,3.03]
[1764693783432,62.82,138.84,138.81,1.74928415]
[1764693783737,62.82,138.84,138.8,1.74928415]
[1764693783939,100.8075,138.88,138.8,1.74928415]
[1764693783940,62.89401203,138.83,138.8,1.74928415]
[1764693784137,0.04722177,138.83,138.81,4.77928415]
[1764693784343,0.04559314,138.83,138.82,4.77928415]
[1764693784538,0.053156,138.84,138.83,3.03]
[1764693784735,0.05005537,138.85,138.83,3.03]
[1764693785630,0.05005537,138.85,138.84,4.77119214]
[1764693785832,11.99522368,138.96,138.85,3.03]
[1764693786137,62.84,138.95,138.89,1.73999097]
[1764693786336,62.84,138.95,138.88,3.03]
[1764693786641,62.84,138.95,138.8,100.8572]
[1764693786642,62.84,138.95,138.8,3.03]
[1764693786848,62.84,138.95,138.79,11.99522368]
[1764693786849,0.05508419,138.89,138.88,1.73806802]
[1764693787033,62.84,138.95,138.84,3.03]
[1764693787034,0.05281225,138.9,138.87,0.04541807]
[1764693787229,62.84,138.89,138.87,1.78367797]
[1764693787433,62.84,138.89,138.87,0.04541807]
[1764693787834,0.05281225,138.9,138.87,0.04541807]
[1764693788040,62.86,138.89,138.87,0.04541807]
[1764693789444,62.91281225,138.9,138.87,3.26541807]
[1764693790239,62.91281225,138.9,138.87,0.04541807]
[1764693790638,6.4801,138.89,138.87,0.04541807]
[1764693791442,6.4805,138.88,138.79,3.22]
[1764693791644,6.4805,138.88,138.81,1.73628803]
[1764693791844,6.4805,138.88,138.79,3.22]
[1764693791845,112.80892368,138.87,138.76,3.22]
[1764693792037,112.80892368,138.87,138.8,1.73717998]
[1764693792242,112.80892368,138.87,138.79,1.73717998]
[1764693792243,6.4818,138.85,138.79,1.73717998]
[1764693792546,0.0498334,138.83,138.79,1.73717998]
[1764693792747,0.0498334,138.83,138.77,1.73717998]
[1764693793035,0.04629966,138.81,138.72,3.22]
[1764693793239,0.05226355,138.78,138.75,1.73709647]
[1764693793440,62.86,138.77,138.75,1.73709647]
[1764693793844,62.86,138.77,138.72,3.22]
[1764693793845,62.86,138.77,138.76,1.73709647]
[1764693794046,62.86,138.77,138.72,3.22]
[1764693794248,0.05226355,138.78,138.75,4.95400426]
[1764693794437,62.86,138.79,138.77,3.22]
[1764693794639,62.86,138.81,138.78,1.73063365]
[1764693794840,0.04685123,138.79,138.78,1.73063365]
[1764693795244,0.04685123,138.79,138.78,3.22]
[1764693796248,0.04685123,138.79,138.71,3.22]
[1764693796444,0.04979818,138.76,138.71,3.22]
[1764693796849,62.88,138.81,138.71,3.22]
[1764693797146,62.88,138.81,138.78,1.72895762]
[1764693797750,62.93311229,138.81,138.78,1.78006272]
[1764693798047,62.93311229,138.81,138.78,0.0511051]
[1764693798048,6.4839,138.8,138.78,0.0511051]
[1764693798353,62.88,138.8,138.78,0.0511051]
[1764693799246,0.05311229,138.81,138.78,3.2711051]
[1764693799546,62.93311229,138.81,138.78,3.2711051]
[1764693799743,62.93311229,138.81,138.78,0.0511051]
[1764693799946,62.93311229,138.81,138.78,3.2711051]
[1764693800140,0.05311229,138.81,138.78,3.2711051]
[1764693800340,0.05311229,138.81,138.79,1.72532004]
[1764693800538,0.05311229,138.81,138.79,4.94532004]
[1764693800938,0.05311229,138.81,138.79,3.22]
[1764693801552,0.05311229,138.81,138.78,0.0511051]
[1764693802248,0.05311229,138.81,138.78,3.2711051]
[1764693802451,0.05311229,138.81,138.79,4.94323862]
[1764693802653,0.05311229,138.81,138.8,3.22]
[1764693802859,11.99522368,138.88,138.81,3.22]
[1764693802860,62.9,138.85,138.81,3.22]
[1764693803151,62.9,138.85,138.82,4.94222183]
[1764693803453,62.9,138.85,138.82,3.22]
[1764693803851,62.94633161,138.85,138.82,3.27035171]
[1764693804453,0.04633161,138.85,138.82,3.27035171]
[1764693804646,0.04633161,138.85,138.83,1.72189423]
[1764693804852,0.04633161,138.85,138.82,3.27035171]
[1764693804853,0.04633161,138.85,138.82,0.05035171]
[1764693805751,62.88,138.84,138.82,0.05035171]
[1764693806658,62.88,138.84,138.72,3.22]
[1764693806659,100.8505,138.82,138.72,3.22]
[1764693806949,112.84302368,138.82,138.76,1.72474361]
[1764693807548,0.05479503,138.8,138.76,1.72474361]
[1764693807751,0.05479503,138.8,138.78,0.05327331]
[1764693807956,62.88,138.79,138.78,0.05327331]
[1764693810155,62.9,138.79,138.78,0.05327331]
[1764693810356,0.05479503,138.8,138.78,0.05327331]
[1764693810552,62.88,138.79,138.78,0.05327331]
[1764693811555,0.05479503,138.8,138.78,0.05327331]
[1764693811754,62.9,138.79,138.78,0.05327331]
[1764693815965,6.4854,138.77,138.7,3.22]
[1764693816264,62.9,138.78,138.75,4.96780156]
[1764693816463,62.9,138.78,138.75,3.23]
[1764693816966,0.0467092,138.78,138.75,3.23]
[1764693817261,62.9,138.77,138.75,3.23]
[1764693818457,62.9,138.77,138.7,3.23]
[1764693818659,0.05540321,138.75,138.7,3.23]
[1764693820269,11.99522368,138.85,138.7,3.23]
[1764693820462,62.9,138.8,138.75,1.75061735]
[1764693820662,62.9,138.79,138.74,1.75061735]
[1764693821061,6.485,138.78,138.74,1.75061735]
[1764693821261,0.05450166,138.77,138.75,0.05216648]
[1764693821462,0.05450166,138.77,138.75,0.0490269]
[1764693823964,0.05450166,138.77,138.65,2.96]
[1764693823965,6.4868,138.74,138.65,2.96]
[1764693824164,6.4868,138.74,138.69,1.76002098]
[1764693824165,62.9,138.73,138.69,1.76002098]
[1764693825068,0.04801532,138.72,138.69,1.76002098]
[1764693825372,0.04801532,138.72,138.62,2.96]
[1764693825573,0.04625838,138.68,138.66,1.7638866]
[1764693825770,0.04811678,138.68,138.66,1.7638866]
[1764693826065,62.9,138.67,138.66,1.7638866]
[1764693826272,62.9,138.67,138.58,2.96]
[1764693826467,62.9,138.67,138.61,1.76464927]
[1764693826668,0.05397443,138.65,138.58,2.96]
[1764693826866,0.05397443,138.65,138.6,1.76609195]
[1764693827272,0.05397443,138.65,138.6,4.72609195]
[1764693827471,0.05397443,138.65,138.6,2.96]
[1764693828378,0.05397443,138.65,138.53,2.96]
[1764693828673,0.05166166,138.6,138.53,2.96]
[1764693829573,0.05166166,138.6,138.54,2.96]
[1764693831471,0.05166166,138.6,138.59,1.76003489]
[1764693831675,0.049095,138.61,138.59,1.76003489]
[1764693832163,0.049095,138.61,138.58,1.76003489]
[1764693832367,0.049095,138.61,138.58,2.96]
[1764693832570,0.049095,138.61,138.59,4.71952211]
[1764693832768,0.05504879,138.61,138.59,2.96]
[1764693833971,0.05504879,138.61,138.53,2.96]
[1764693834177,0.04856286,138.58,138.53,2.96]
[1764693835378,0.04856286,138.58,138.57,1.75961226]
[1764693835579,0.04856286,138.58,138.53,2.96]
[1764693835580,0.04856286,138.58,138.56,1.75961226]
[1764693837276,0.04856286,138.58,138.55,1.75961226]
[1764693837988,0.04856286,138.58,138.54,1.75961226]
[1764693838284,70.0201932,138.6,138.54,1.75961226]
[1764693838285,0.05280319,138.57,138.54,1.75961226]
[1764693839391,0.05280319,138.57,138.51,2.96]
[1764693839696,0.05280319,138.57,138.53,1.75843054]
[1764693840292,0.05280319,138.57,138.52,2.96]
[1764693840598,0.04961195,138.56,138.52,2.96]
[1764693840792,0.04961195,138.56,138.53,1.75778908]
[1764693841391,0.04961195,138.56,138.52,2.96]
[1764693841597,0.04961195,138.56,138.53,1.7566268]
[1764693841998,0.04961195,138.56,138.53,4.7166268]
[1764693842199,0.04961195,138.56,138.55,1.7566268]
[1764693842404,0.05051735,138.57,138.55,2.96]
[1764693842799,100.9595,138.67,138.55,2.96]
[1764693842800,7.1001932,138.65,138.55,2.96]
[1764693843092,7.1001932,138.67,138.6,1.75249813]
[1764693843302,7.1001932,138.67,138.59,2.96]
[1764693843482,7.1001932,138.64,138.56,2.96]
[1764693843684,7.1001932,138.64,138.57,1.75257309]
[1764693843887,7.1001932,138.64,138.56,2.96]
[1764693843888,0.05030783,138.62,138.59,0.0474563]
[1764693844490,62.99030783,138.62,138.59,0.0474563]
[1764693845202,0.05030783,138.62,138.59,0.0474563]
[1764693845797,0.05030783,138.62,138.59,3.0074563]
[1764693846696,0.05030783,138.62,138.59,0.0474563]
[1764693847999,7.1001932,138.61,138.59,0.0474563]
[1764693848204,102.48710783,138.62,138.51,2.96]
[1764693848392,7.1001932,138.58,138.53,4.71298589]
[1764693848590,7.1001932,138.58,138.53,2.96]
[1764693849097,0.05002912,138.57,138.53,2.96]
[1764693849598,62.94,138.56,138.46,3.05]
[1764693849793,0.04698543,138.52,138.46,3.05]
[1764693850187,0.04698543,138.52,138.51,1.75373983]
[1764693850188,7.14717863,138.52,138.51,1.75373983]
[1764693850393,7.14717863,138.52,138.45,3.24679905]
[1764693850699,7.14717863,138.52,138.47,4.8046848]
[1764693850901,70.08717863,138.52,138.48,4.8046848]
[1764693851103,0.04698543,138.52,138.48,3.05]
[1764693851702,0.04698543,138.52,138.51,3.05]
[1764693852603,0.04698543,138.52,138.47,3.05]
[1764693852898,0.04698543,138.52,138.49,4.80378889]
[1764693853106,0.04698543,138.52,138.49,3.05]
[1764693853904,0.04698543,138.52,138.51,3.05]
[1764693854800,7.1001932,138.6,138.51,3.05]
[1764693854997,69.454,138.59,138.52,1.75241226]
[1764693855197,62.96,138.59,138.52,4.80241226]
[1764693855405,108.1305932,138.57,138.48,3.05]
[1764693855602,108.1305932,138.57,138.49,4.80403928]
[1764693855791,0.0494809,138.54,138.52,0.05093038]
[1764693857002,6.5457809,138.54,138.52,0.05093038]
[1764693857192,13.6459741,138.54,138.52,0.05093038]
[1764693857392,108.2011741,138.54,138.46,3.05]
[1764693857605,108.2011741,138.54,138.47,1.75560461]
[1764693857606,6.4973,138.52,138.47,1.75560461]
[1764693857807,62.96,138.53,138.47,3.05]
[1764693857995,164.0212,138.53,138.47,3.05]
[1764693858302,164.0212,138.53,138.45,3.24679905]
[1764693858505,0.05177514,138.51,138.46,4.80572714]
[1764693859005,6.54937514,138.51,138.46,3.05]
[1764693859195,0.05177514,138.51,138.46,3.05]
[1764693859398,63.01177514,138.51,138.46,3.05]
[1764693859599,63.01177514,138.51,138.48,3.05]
[1764693861301,0.05177514,138.51,138.49,1.75702665]
[1764693861509,0.05177514,138.51,138.5,3.05]
[1764693861800,0.05177514,138.51,138.46,3.05]
[1764693862001,0.05177514,138.51,138.49,3.05]
[1764693863089,0.05177514,138.51,138.46,3.05]
[1764693863803,0.05177514,138.51,138.47,4.80954119]
[1764693864106,0.05177514,138.51,138.48,3.05]
[1764693865903,0.05177514,138.51,138.5,3.05]
[1764693868207,6.4949,138.57,138.5,3.05]
[1764693868411,108.1057932,138.61,138.52,3.05]
[1764693868604,62.96,138.6,138.52,3.05]
[1764693868797,6.494,138.59,138.53,1.76587927]
[1764693868994,62.96,138.6,138.56,3.05]
[1764693869298,0.05530457,138.59,138.57,3.09609925]
[1764693869497,63.00791645,138.59,138.57,3.10425426]
[1764693869703,63.00791645,138.59,138.57,0.05425426]
[1764693870206,63.00791645,138.59,138.57,3.10425426]
[1764693870410,63.00791645,138.59,138.57,0.05425426]
[1764693870811,7.1001932,138.58,138.5,3.05]
[1764693871001,7.1001932,138.58,138.51,1.76770279]
[1764693871199,7.1001932,138.58,138.5,3.05]
[1764693871398,7.1001932,138.55,138.47,3.05]
[1764693871716,7.1001932,138.55,138.49,1.76875707]
[1764693872011,0.05413532,138.53,138.49,4.81875707]
[1764693872310,0.05413532,138.53,138.5,3.05]
[1764693872517,0.05413532,138.53,138.51,3.05]
[1764693872706,0.05413532,138.53,138.52,4.81894232]
[1764693872902,7.1001932,138.58,138.53,3.05]